bitfinex-derivatives/quotes_ETHF0:USTF0_20210110
["timestamp","ask_amount","ask_price","bid_price","bid_amount"]
[1610259692658,4.26165117,1314.7,1314.6,34.00959]
[1610259696460,4.26165117,1314.7,1314.6,38.54827984]
[1610259699764,4.26165117,1314.7,1314.6,34.00959]
[1610259701066,4.26165117,1314.7,1314.6,38.56033457]
[1610259701767,4.26165117,1314.7,1314.6,34.00959]
[1610259725400,4.26165117,1314.7,1314.6,38.56684498]
[1610259727202,4.26165117,1314.7,1314.6,34.00959]
[1610259731713,4.26165117,1314.7,1314.6,38.5653767]
[1610259733013,4.26165117,1314.7,1314.6,34.00959]
[1610259746732,51.84075117,1314.7,1314.6,34.00959]
[1610259748434,51.84075117,1314.7,1314.6,4.00959]
[1610259748633,4.26165117,1314.7,1314.6,4.00959]
[1610259751435,4.26165117,1314.7,1314.6,8.09773988]
[1610259751635,4.26165117,1314.7,1314.6,38.09773988]
[1610259751835,4.26165117,1314.7,1314.6,34.00959]
[1610259756144,12.07425117,1314.7,1314.6,34.00959]
[1610259757245,12.07425117,1314.7,1314.6,4.00959]
[1610259761351,12.07425117,1314.7,1314.6,34.00959]
[1610259765554,4.26165117,1314.7,1314.6,34.00959]
[1610259766156,8.27124117,1314.7,1314.6,34.00959]
[1610259766958,8.27124117,1314.7,1314.6,4.00959]
[1610259767658,8.27124117,1314.7,1314.6,8.08009342]
[1610259768857,8.27124117,1314.7,1314.6,4.07050342]
[1610259769059,8.27124117,1314.7,1314.5,4.06850182]
[1610259772963,8.27124117,1314.7,1314.4,4.06499659]
[1610259774166,4.00959,1314.5,1314.4,4.06499659]
[1610259774765,53.01689,1314.5,1314.4,4.06499659]
[1610259781676,49.0073,1314.5,1314.4,4.06499659]
[1610259782077,49.0073,1314.5,1314.3,34.00959]
[1610259784280,4.26165117,1314.7,1314.3,34.00959]
[1610259786284,4.26165117,1314.7,1314.6,4.00959]
[1610259786483,4.26165117,1314.7,1314.6,34.00959]
[1610259794597,4.26165117,1314.7,1314.6,36.19819]
[1610259802706,4.26165117,1314.7,1314.6,40.65342541]
[1610259809723,4.26165117,1314.7,1314.6,36.19819]
[1610259837052,4.26165117,1314.7,1314.6,40.63070586]
[1610259840355,4.26165117,1314.7,1314.6,36.19819]
[1610259842713,4.26165117,1314.7,1314.6,40.63619261]
[1610259845560,4.26165117,1314.7,1314.6,36.19819]
[1610259906329,4.23943159,1314.7,1314.6,36.19819]
[1610259972711,4.12543159,1314.7,1314.6,36.19819]
[1610260078544,4.12543159,1314.7,1314.6,41.61164016]
[1610260082547,4.12543159,1314.7,1314.6,36.19819]
[1610260111277,4.12543159,1314.7,1314.6,40.75332368]
[1610260112477,4.12543159,1314.7,1314.6,36.19819]
[1610260112677,4.12543159,1314.7,1314.6,34.00959]
[1610260113180,67.57023159,1314.7,1314.6,34.00959]
[1610260114781,67.57023159,1314.7,1314.6,30.0]
[1610260115282,67.57023159,1314.7,1314.6,34.00959]
[1610260122691,4.12543159,1314.7,1314.6,34.00959]
[1610260144424,4.12543159,1314.7,1314.6,38.53384328]
[1610260145829,4.12543159,1314.7,1314.6,34.00959]
[1610260178973,10.96683159,1314.7,1314.6,34.00959]
[1610260188382,4.12543159,1314.7,1314.6,4.00959]
[1610260189784,8.13502159,1314.7,1314.6,4.00959]
[1610260190085,10.61472159,1314.7,1314.6,8.11668038]
[1610260190386,10.61472159,1314.7,1314.6,4.00959]
[1610260190786,10.61472159,1314.7,1314.6,8.11811392]
[1610260191188,10.61472159,1314.7,1314.6,4.00959]
[1610260191888,10.61472159,1314.7,1314.6,8.12268976]
[1610260197893,10.61472159,1314.7,1314.6,4.11309976]
[1610260206809,10.61472159,1314.7,1314.5,4.11324619]
[1610260207509,10.61472159,1314.7,1314.6,4.11036843]
[1610260208612,10.61472159,1314.7,1314.5,4.10826886]
[1610260210814,10.61472159,1314.7,1314.4,4.10309008]
[1610260212017,4.00959,1314.5,1314.4,4.10309008]
[1610260216630,60.78429,1314.5,1314.4,4.10309008]
[1610260217628,60.78429,1314.5,1314.2,34.00959]
[1610260218027,4.00959,1314.3,1314.2,34.00959]
[1610260219029,3.99434615,1314.3,1314.2,34.00959]
[1610260224140,56.7747,1314.5,1314.2,34.00959]
[1610260225944,56.7747,1314.5,1314.4,4.00959]
[1610260226144,52.452,1314.5,1314.4,34.00959]
[1610260228646,10.61472159,1314.7,1314.4,34.00959]
[1610260229046,6.60513159,1314.7,1314.4,34.00959]
[1610260230048,6.60513159,1314.7,1314.6,34.00959]
[1610260231953,4.12543159,1314.7,1314.6,34.00959]
[1610260241970,4.12543159,1314.7,1314.6,4.00959]
[1610260242271,4.12543159,1314.7,1314.0,30.0]
[1610260242470,4.12543159,1314.7,1314.6,4.08724683]
[1610260244175,8.13502159,1314.7,1314.6,8.09683683]
[1610260244375,8.13502159,1314.7,1314.6,4.00959]
[1610260246675,8.13502159,1314.7,1314.6,34.00959]
[1610260246976,8.13502159,1314.7,1314.6,38.10159263]
[1610260247276,8.13502159,1314.7,1314.6,34.00959]
[1610260247877,8.13502159,1314.7,1314.6,38.10498859]
[1610260248579,8.13502159,1314.7,1314.6,8.10498859]
[1610260249080,8.13502159,1314.7,1314.6,38.10498859]
[1610260253283,8.13502159,1314.7,1314.6,34.00959]
[1610260254288,8.13502159,1314.7,1314.6,38.1166981]
[1610260254587,8.13502159,1314.7,1314.6,34.00959]
[1610260259596,8.13502159,1314.7,1314.6,38.11733957]
[1610260259895,8.13502159,1314.7,1314.6,34.00959]
[1610260260195,8.13502159,1314.7,1314.6,38.11762409]
[1610260260897,8.13502159,1314.7,1314.6,34.00959]
[1610260261600,8.13502159,1314.7,1314.6,38.11732351]
[1610260262300,8.13502159,1314.7,1314.6,34.00959]
[1610260265003,4.12543159,1314.7,1314.6,34.00959]
[1610260279915,4.12543159,1314.7,1314.6,38.55231017]
[1610260283217,4.12543159,1314.7,1314.6,36.00439]
[1610260314257,4.12543159,1314.7,1314.6,40.57896282]
[1610260321059,4.12543159,1314.7,1314.6,36.00439]
[1610260426716,4.12543159,1314.7,1314.6,40.60524342]
[1610260427717,4.12543159,1314.7,1314.6,36.00439]
[1610260427915,4.12543159,1314.7,1314.6,34.00959]
[1610260452549,6.32233159,1314.7,1314.6,34.00959]
[1610260463268,4.12543159,1314.7,1314.6,34.00959]
[1610260502726,4.11329355,1314.7,1314.6,34.00959]
[1610260507137,4.11329355,1314.7,1314.6,33.99155301]
[1610260508935,4.11329355,1314.7,1314.6,36.28925301]
[1610260509936,4.11329355,1314.7,1314.6,33.99155301]
[1610260513141,4.11329355,1314.7,1314.6,38.59205952]
[1610260516447,4.11329355,1314.7,1314.6,33.99155301]
[1610260520650,4.11329355,1314.7,1314.6,35.83035301]
[1610260558301,4.11329355,1314.7,1314.6,33.99155301]
[1610260558904,4.11329355,1314.7,1314.6,38.64668079]
[1610260559405,4.11329355,1314.7,1314.6,30.0]
[1610260559604,6.27169355,1314.7,1314.6,30.0]
[1610260560205,10.28128355,1314.7,1314.6,30.0]
[1610260561606,6.27169355,1314.7,1314.6,30.0]
[1610260562106,6.27169355,1314.7,1314.6,34.00959]
[1610260563507,6.27169355,1314.7,1314.6,38.66710285]
[1610260565109,4.11329355,1314.7,1314.6,38.66710285]
[1610260566608,4.11329355,1314.7,1314.6,40.51080285]
[1610260567010,4.11329355,1314.7,1314.6,35.85329]
[1610260597852,0.91329355,1314.7,1314.6,35.85329]
[1610260599652,62.057,1316.2,1314.6,35.85329]
[1610260599853,62.057,1316.2,1314.6,46.06929]
[1610260600054,62.057,1316.2,1315.9,5.51257246]
[1610260600255,62.057,1316.2,1316.0,30.0]
[1610260600454,62.057,1316.2,1316.1,4.00959]
[1610260600653,62.057,1316.2,1316.1,34.00959]
[1610260602061,2.4443,1317.3,1316.1,34.00959]
[1610260602258,2.4443,1317.3,1316.1,37.41459]
[1610260602457,2.4443,1317.3,1317.2,4.00959]
[1610260602657,2.4443,1317.3,1317.2,34.00959]
[1610260604059,4.00959,1318.8,1317.2,34.00959]
[1610260604262,4.00959,1318.8,1317.2,37.41459]
[1610260604461,4.00959,1318.8,1318.7,4.00959]
[1610260605363,6.1677,1321.6,1318.7,4.00959]
[1610260606460,4.00959,1319.3,1318.0,4.12789739]
[1610260606662,6.51879,1319.3,1318.1,4.12504543]
[1610260608364,6.51879,1319.3,1318.1,34.12504543]
[1610260608565,2.5092,1319.3,1319.1,4.00959]
[1610260610467,4.00959,1319.2,1319.1,4.00959]
[1610260613767,4.00959,1319.2,1318.3,4.13033113]
[1610260614368,4.00959,1319.2,1318.3,34.13033113]
[1610260614568,4.00959,1319.0,1318.9,4.00959]
[1610260614869,5.76349,1319.0,1318.9,4.00959]
[1610260615069,5.76349,1319.0,1318.3,34.13033113]
[1610260615369,5.76349,1319.0,1318.1,4.12861774]
[1610260615969,5.76349,1319.0,1318.2,30.0]
[1610260616370,5.76349,1319.0,1318.2,34.12912679]
[1610260616570,5.76349,1319.0,1318.9,4.00959]
[1610260617470,1.7539,1319.0,1318.9,4.00959]
[1610260617970,1.7539,1319.0,1318.4,30.0]
[1610260618171,1.7539,1319.0,1318.3,4.12710572]
[1610260618571,5.76349,1319.0,1318.9,4.00959]
[1610260618771,1.7539,1319.0,1318.9,4.00959]
[1610260619971,2.5092,1319.3,1318.9,4.00959]
[1610260620172,11.5171,1320.1,1318.9,4.00959]
[1610260620574,4.00959,1319.3,1319.1,4.00959]
[1610260620974,6.45219,1319.3,1318.3,4.12692261]
[1610260621776,6.45219,1319.3,1318.3,34.12692261]
[1610260622476,4.00959,1319.0,1318.9,4.00959]
[1610260622876,5.89599,1319.0,1318.9,4.00959]
[1610260623377,1.8864,1319.0,1318.9,4.00959]
[1610260626385,1.8864,1319.0,1318.9,34.00959]
[1610260627783,6.45219,1319.3,1318.9,34.00959]
[1610260627985,6.45219,1319.3,1318.9,4.00959]
[1610260628682,6.45219,1319.3,1318.5,30.0]
[1610260628683,6.45219,1319.3,1319.2,4.00959]
[1610260631087,6.45219,1319.3,1318.4,4.12818818]
[1610260631288,6.45219,1319.3,1318.5,30.0]
[1610260632389,6.45219,1319.3,1318.6,30.0]
[1610260632588,2.4426,1319.3,1319.0,4.00959]
[1610260632988,5.6343,1320.1,1319.0,4.00959]
[1610260633189,5.6343,1320.1,1319.0,7.41459]
[1610260634490,4.00959,1319.2,1319.0,7.41459]
[1610260634890,5.85759,1319.2,1319.0,7.41459]
[1610260635593,5.85759,1319.2,1319.0,3.405]
[1610260636393,5.85759,1319.2,1318.2,14.34752228]
[1610260636593,1.848,1319.2,1318.6,4.00959]
[1610260637792,1.848,1319.2,1318.2,10.216]
[1610260638592,4.00959,1318.3,1318.2,10.216]
[1610260638993,5.81819,1318.3,1318.2,10.216]
[1610260639194,5.81819,1318.3,1318.2,6.811]
[1610260640193,1.8086,1318.3,1318.2,6.811]
[1610260640494,1.8086,1318.3,1318.2,10.82059]
[1610260640995,1.8086,1318.3,1318.2,40.82059]
[1610260641494,1.8086,1318.3,1318.2,34.00959]
[1610260641898,1.8086,1318.3,1318.2,38.13980594]
[1610260642596,1.8086,1318.3,1318.2,34.00959]
[1610260644098,4.00959,1318.9,1318.2,34.00959]
[1610260644399,4.00959,1318.9,1318.3,4.12934246]
[1610260644598,4.00959,1318.9,1318.8,4.00959]
[1610260649314,4.00959,1318.9,1318.3,7.53434246]
[1610260649513,5.68269,1318.9,1318.3,4.12934246]
[1610260649715,5.68269,1318.9,1318.2,4.13642748]
[1610260649912,5.68269,1318.9,1318.2,34.13642748]
[1610260650614,1.6731,1318.9,1318.7,4.00959]
[1610260652617,5.68269,1318.9,1318.7,4.00959]
[1610260656823,1.6731,1318.9,1318.7,4.00959]
[1610260657024,11.6731,1318.9,1318.7,4.00959]
[1610260657225,10.0,1318.9,1318.7,4.00959]
[1610260657525,11.8671,1318.9,1318.7,4.00959]
[1610260658729,4.00959,1318.8,1318.7,4.00959]
[1610260660027,4.00959,1318.8,1318.7,34.00959]
[1610260660228,11.8671,1318.9,1318.7,34.00959]
[1610260660628,4.00959,1318.8,1318.7,34.00959]
[1610260661028,4.00959,1318.8,1318.7,4.00959]
[1610260661229,11.8671,1318.9,1318.7,34.00959]
[1610260662228,11.8671,1318.9,1318.7,4.00959]
[1610260662630,4.00959,1318.8,1318.7,4.00959]
[1610260662928,11.8671,1318.9,1318.7,34.00959]
[1610260669536,11.8671,1318.9,1318.7,4.00959]
[1610260669737,11.8671,1318.9,1318.7,34.00959]
[1610260682747,4.00959,1318.8,1318.7,34.00959]
[1610260686048,4.00959,1318.8,1318.4,30.0]
[1610260686749,4.00959,1318.5,1318.4,34.00959]
[1610260686950,5.80229,1318.5,1318.4,34.00959]
[1610260687151,5.80229,1318.5,1318.4,30.0]
[1610260687350,5.80229,1318.5,1318.3,34.14787749]
[1610260687550,5.80229,1318.5,1318.3,30.0]
[1610260689756,5.80229,1318.5,1318.2,34.00959]
[1610260690756,4.00959,1318.3,1318.2,4.00959]
[1610260690955,4.00959,1318.3,1318.1,4.15368806]
[1610260691155,4.00959,1318.3,1318.0,4.15435741]
[1610260691555,4.00959,1318.3,1317.9,4.15883207]
[1610260691856,4.00959,1318.3,1317.8,4.16131267]
[1610260692258,4.00959,1318.3,1317.6,34.16499626]
[1610260692661,4.00959,1318.3,1317.6,30.0]
[1610260692859,4.00959,1317.7,1317.6,30.0]
[1610260693060,6.46859,1317.7,1317.5,4.16654604]
[1610260693259,6.46859,1317.7,1317.4,38.17766182]
[1610260694759,4.00959,1317.5,1317.4,38.17766182]
[1610260695060,4.00959,1317.5,1317.4,34.00959]
[1610260696461,4.00959,1317.5,1317.4,38.17436655]
[1610260696862,6.46859,1317.7,1317.4,34.00959]
[1610260697465,6.46859,1317.7,1317.5,4.16293581]
[1610260697662,6.46859,1317.7,1317.6,30.0]
[1610260698968,6.46859,1317.7,1317.6,4.00959]
[1610260700070,6.46859,1317.7,1317.5,4.16293581]
[1610260700270,6.46859,1317.7,1317.5,34.16293581]
[1610260700971,6.46859,1317.7,1317.5,38.17252581]
[1610260704676,6.46859,1317.7,1317.5,34.00959]
[1610260706276,6.46859,1317.7,1317.5,30.0]
[1610260706876,6.46859,1317.7,1317.3,4.15393774]
[1610260707077,6.46859,1317.7,1317.2,34.15638284]
[1610260708078,6.46859,1317.7,1317.2,4.15638284]
[1610260708979,4.00959,1317.3,1317.2,4.15638284]
[1610260709179,6.02209,1317.3,1317.2,4.15638284]
[1610260713283,6.02209,1317.3,1317.2,34.15638284]
[1610260714487,6.02209,1317.3,1317.2,4.15638284]
[1610260714686,6.02209,1317.3,1317.1,4.158949]
[1610260716298,6.02209,1317.3,1317.0,4.16030268]
[1610260716698,6.02209,1317.3,1316.9,4.16414934]
[1610260717099,4.00959,1317.0,1316.9,4.16414934]
[1610260717298,4.00959,1317.0,1316.8,34.16546796]
[1610260717498,6.03089,1317.0,1316.8,34.16546796]
[1610260718499,6.03089,1317.0,1316.9,4.16828922]
[1610260721608,6.03089,1317.0,1316.8,4.17518095]
[1610260725711,6.03089,1317.0,1316.7,7.58814854]
[1610260726011,6.03089,1317.0,1316.7,3.405]
[1610260726211,6.03089,1317.0,1316.6,34.18482232]
[1610260726411,6.03089,1317.0,1316.7,4.18438945]
[1610260726711,6.03089,1317.0,1316.5,4.18704299]
[1610260727210,4.00959,1316.6,1316.5,4.18704299]
[1610260727412,6.13429,1316.6,1316.5,4.18704299]
[1610260729215,6.13429,1316.6,1316.4,4.188933]
[1610260729411,6.13429,1316.6,1316.4,34.188933]
[1610260730512,6.13429,1316.6,1316.4,4.188933]
[1610260733721,6.13429,1316.6,1316.3,4.18118079]
[1610260734121,6.13429,1316.6,1316.4,4.18103096]
[1610260734521,6.13429,1316.6,1316.3,4.18158051]
[1610260735122,6.13429,1316.6,1316.2,4.18266951]
[1610260735322,4.00959,1316.4,1316.2,4.18266951]
[1610260736125,4.00959,1316.4,1316.3,4.18106888]
[1610260737323,4.00959,1316.4,1316.3,34.18106888]
[1610260737524,4.00959,1316.4,1316.3,30.0]
[1610260738729,2.1247,1316.6,1316.3,30.0]
[1610260738929,2.0213,1317.0,1316.3,30.0]
[1610260739331,52.3674,1317.1,1316.6,34.00959]
[1610260739530,52.3674,1317.1,1316.7,4.17520175]
[1610260740634,52.3674,1317.1,1316.7,34.17520175]
[1610260740835,52.3674,1317.1,1316.8,4.17284477]
[1610260744612,4.00959,1316.9,1316.8,4.17284477]
[1610260744621,5.75489,1316.9,1316.7,30.0]
[1610260744626,5.75489,1316.9,1316.8,4.17103845]
[1610260744634,5.75489,1316.9,1316.7,30.0]
[1610260744639,5.75489,1316.9,1316.8,4.17105487]
[1610260744646,5.75489,1316.9,1316.7,30.0]
[1610260744669,5.75489,1316.9,1316.8,4.17044125]
[1610260744678,5.75489,1316.9,1316.7,34.17292404]
[1610260744793,5.75489,1316.9,1316.7,30.0]
[1610260745444,5.75489,1316.9,1316.6,4.17402877]
[1610260746143,5.75489,1316.9,1316.6,34.17402877]
[1610260747243,4.00959,1316.7,1316.6,34.17402877]
[1610260748145,4.00959,1316.7,1316.6,4.17402877]
[1610260748645,4.00959,1316.7,1316.5,4.17326071]
[1610260749046,4.00959,1316.7,1316.4,4.17304418]
[1610260749246,4.00959,1316.5,1316.4,4.17304418]
[1610260749446,6.47829,1316.5,1316.4,4.17304418]
[1610260750447,6.47829,1316.5,1316.3,34.1738078]
[1610260751048,6.47829,1316.5,1316.2,4.17663213]
[1610260751247,4.00959,1316.3,1316.2,4.17663213]
[1610260751447,4.00959,1316.3,1316.1,4.17646145]
[1610260752448,4.00959,1316.3,1315.9,7.58416968]
[1610260752650,4.00959,1316.3,1315.9,3.405]
[1610260753348,4.00959,1316.0,1315.7,4.18344529]
[1610260753551,4.00959,1316.0,1315.6,4.18435131]
[1610260754750,5.98849,1316.0,1315.6,4.18435131]
[1610260755352,4.00959,1315.7,1315.6,4.18435131]
[1610260755551,4.00959,1315.7,1314.9,30.0]
[1610260755751,5.99399,1315.7,1314.9,30.0]
[1610260757353,6.12559,1315.4,1315.3,30.0]
[1610260757553,2.116,1315.4,1315.3,30.0]
[1610260758754,1.9844,1315.7,1315.3,30.0]
[1610260759253,1.9844,1315.7,1315.6,4.00959]
[1610260759454,1.9844,1315.7,1315.6,34.00959]
[1610260759655,1.9789,1316.0,1315.6,34.00959]
[1610260759856,2.4687,1316.5,1315.6,34.00959]
[1610260760055,11.8091,1318.8,1315.6,34.00959]
[1610260760455,11.8091,1318.8,1316.5,4.17519017]
[1610260760656,11.8091,1318.8,1315.6,34.00959]
[1610260760857,13.7655,1318.8,1316.5,4.17666878]
[1610260761257,4.00959,1316.6,1316.5,4.17666878]
[1610260761455,4.00959,1316.6,1316.4,4.18002991]
[1610260761656,5.93149,1316.6,1316.5,4.18006301]
[1610260762461,5.93149,1316.6,1316.4,34.17960847]
[1610260762858,5.93149,1316.6,1316.5,4.17851953]
[1610260763960,5.93149,1316.6,1316.4,30.0]
[1610260764160,5.93149,1316.6,1316.5,4.17430351]
[1610260765063,5.93149,1316.6,1316.3,30.0]
[1610260765362,4.00959,1316.4,1316.3,30.0]
[1610260767366,5.93149,1316.6,1316.3,30.0]
[1610260769467,5.93149,1316.6,1316.5,34.00959]
[1610260771469,5.93149,1316.6,1316.5,4.00959]
[1610260772769,5.93149,1316.6,1316.5,34.00959]
[1610260773169,1.9219,1316.6,1316.5,34.00959]
[1610260773570,4.00959,1316.8,1316.5,34.00959]
[1610260775475,4.00959,1316.8,1316.7,4.00959]
[1610260775674,4.00959,1316.8,1316.7,34.00959]
[1610260775974,51.4019,1317.6,1316.7,34.00959]
[1610260776377,51.4019,1317.6,1317.0,4.15785552]
[1610260776577,51.4019,1317.6,1317.1,30.0]
[1610260776777,51.4019,1317.6,1317.1,34.15718546]
[1610260777078,51.4019,1317.6,1317.3,30.0]
[1610260777477,4.00959,1317.4,1317.3,30.0]
[1610260777679,5.54459,1317.4,1317.3,30.0]
[1610260780381,5.54459,1317.4,1317.1,30.0]
[1610260781382,4.00959,1317.2,1316.8,4.16480749]
[1610260781683,4.00959,1317.2,1316.7,7.5708641]
[1610260782282,4.00959,1317.2,1316.7,3.405]
[1610260782681,4.00959,1317.2,1316.7,33.405]
[1610260783482,4.00959,1316.8,1316.7,33.405]
[1610260783683,5.67229,1316.8,1316.7,37.57430311]
[1610260784184,5.67229,1316.8,1316.7,7.57430311]
[1610260784785,5.67229,1316.8,1316.7,3.405]
[1610260791790,5.67229,1316.8,1316.3,4.17698852]
[1610260793490,4.00959,1316.4,1316.3,34.17698852]
[1610260793889,6.09739,1316.4,1316.3,34.17698852]
[1610260794088,6.09739,1316.4,1316.3,30.0]
[1610260795793,6.09739,1316.4,1316.3,4.18555524]
[1610260799400,6.09739,1316.4,1316.2,4.17733312]
[1610260799601,6.09739,1316.4,1316.2,34.17733312]
[1610260799999,6.09739,1316.4,1316.3,4.17458767]
[1610260800199,6.09739,1316.4,1316.3,34.17458767]
[1610260800398,6.09739,1316.4,1316.3,30.0]
[1610260800799,6.09739,1316.4,1316.3,34.17471638]
[1610260801499,6.09739,1316.4,1315.6,14.22559]
[1610260801500,6.09739,1316.4,1316.2,4.17543193]
[1610260803499,6.09739,1316.4,1316.1,4.17940497]
[1610260803703,6.09739,1316.4,1316.1,34.17940497]
[1610260804502,6.09739,1316.4,1316.1,30.0]
[1610260804903,6.09739,1316.4,1316.1,34.18396437]
[1610260805600,4.00959,1316.2,1316.1,34.18396437]
[1610260806004,4.00959,1316.2,1316.1,30.0]
[1610260806205,4.00959,1316.2,1316.0,4.18922994]
[1610260806904,4.00959,1316.2,1315.9,4.1936711]
[1610260807504,4.00959,1316.0,1315.9,4.1936711]
[1610260807704,6.06939,1316.0,1315.9,34.1936711]
[1610260808105,6.06939,1316.0,1315.9,30.0]
[1610260809309,2.0598,1316.0,1315.9,30.0]
[1610260809509,2.0598,1316.0,1315.9,34.00959]
[1610260811114,2.0878,1316.4,1315.9,34.00959]
[1610260811312,55.759,1316.6,1315.9,34.00959]
[1610260811513,55.759,1316.6,1316.5,4.00959]
[1610260811713,55.759,1316.6,1316.5,34.00959]
[1610260816720,55.759,1316.6,1316.5,38.63690549]
[1610260818122,2.062,1317.1,1316.5,38.63690549]
[1610260819624,2.062,1317.1,1317.0,4.00959]
[1610260819824,2.062,1317.1,1317.0,34.00959]
[1610260822033,4.00959,1318.4,1317.0,34.00959]
[1610260822333,4.00959,1318.4,1317.2,30.0]
[1610260822533,4.00959,1318.4,1317.2,33.405]
[1610260822733,4.00959,1318.4,1317.9,4.15215719]
[1610260822933,4.00959,1318.4,1318.0,30.0]
[1610260823537,4.00959,1318.4,1318.3,4.00959]
[1610260824536,5.6818,1320.9,1318.3,34.00959]
[1610260825539,5.6818,1320.9,1318.6,4.00959]
[1610260825738,5.6818,1320.9,1318.1,30.0]
[1610260825940,5.6818,1320.9,1318.4,30.0]
[1610260826844,5.6818,1320.9,1318.0,4.15186266]
[1610260827044,5.6818,1320.9,1318.0,34.15186266]
[1610260827243,11.9004,1318.9,1318.0,34.15186266]
[1610260827643,5.67289,1318.3,1318.1,34.00959]
[1610260830946,1.6633,1318.3,1318.1,34.00959]
[1610260831846,1.6633,1318.3,1318.1,38.15674391]
[1610260832246,1.6633,1318.3,1318.2,4.14412536]
[1610260832447,1.6633,1318.3,1318.2,34.14412536]
[1610260832647,11.9004,1318.9,1318.2,30.0]
[1610260833247,11.9004,1318.9,1318.4,4.14005228]
[1610260833447,11.9004,1318.9,1318.5,30.0]
[1610260833648,11.9004,1318.9,1318.8,4.00959]
[1610260833847,11.9004,1318.9,1318.8,34.00959]
[1610260834450,11.9004,1318.9,1318.8,30.0]
[1610260834854,11.9004,1318.9,1318.4,4.14005228]
[1610260835051,11.9004,1318.9,1318.4,30.0]
[1610260835553,4.00959,1318.5,1318.4,34.00959]
[1610260836055,5.62319,1318.5,1318.4,34.00959]
[1610260836853,5.62319,1318.5,1318.3,4.13876289]
[1610260837054,5.62319,1318.5,1318.4,30.0]
[1610260839055,5.62319,1318.5,1318.3,30.0]
[1610260839254,5.62319,1318.5,1318.4,30.0]
[1610260839659,5.62319,1318.5,1318.4,34.00959]
[1610260840968,5.62319,1318.5,1318.3,30.0]
[1610260841963,5.62319,1318.5,1318.0,34.1445378]
[1610260843563,1.6136,1318.5,1318.2,4.00959]
[1610260843763,11.9004,1318.9,1318.2,34.00959]
[1610260844764,11.9004,1318.9,1318.2,8.15224327]
[1610260845163,11.9004,1318.9,1318.3,30.0]
[1610260845665,4.00959,1318.4,1318.3,30.0]
[1610260845866,6.12639,1318.4,1318.3,30.0]
[1610260847472,2.1168,1318.4,1318.3,30.0]
[1610260850869,4.00959,1318.5,1318.3,30.0]
[1610260851669,4.00959,1318.5,1318.4,4.00959]
[1610260852172,4.00959,1318.5,1318.4,34.00959]
[1610260853372,4.00959,1318.5,1318.4,4.00959]
[1610260855272,4.00959,1318.5,1318.2,4.14008464]
[1610260855673,4.00959,1318.3,1318.1,4.14089701]
[1610260855875,4.00959,1318.3,1318.0,4.14303433]
[1610260856574,4.00959,1318.3,1317.9,4.14533478]
[1610260856974,4.00959,1318.3,1317.6,30.0]
[1610260856975,4.00959,1318.3,1317.8,4.14611439]
[1610260857577,4.00959,1318.3,1317.7,4.14801606]
[1610260857776,6.47829,1317.8,1317.7,4.14801606]
[1610260857978,6.47829,1317.8,1317.6,34.14964642]
[1610260858376,6.47829,1317.8,1317.6,4.14964642]
[1610260859185,6.47829,1317.8,1317.5,4.14659099]
[1610260859779,4.00959,1317.6,1317.5,4.14659099]
[1610260859978,4.00959,1317.6,1317.4,4.14717279]
[1610260860179,4.00959,1317.6,1317.5,4.14657113]
[1610260860379,2.4687,1317.8,1317.5,4.14657113]
[1610260860581,2.4687,1317.8,1317.6,30.0]
[1610260860780,2.4687,1317.8,1317.7,4.14288068]
[1610260860980,2.4687,1317.8,1317.7,34.14288068]
[1610260862181,2.4687,1317.8,1317.7,30.0]
[1610260862981,4.00959,1317.9,1317.7,30.0]
[1610260863182,1.964,1318.5,1317.7,30.0]
[1610260863382,44.8397,1318.8,1317.7,30.0]
[1610260863584,44.8397,1318.8,1318.0,4.14042876]
[1610260863783,5.69879,1318.3,1318.1,30.0]
[1610260864984,1.6892,1318.3,1318.2,30.0]
[1610260865685,1.6892,1318.3,1318.2,34.00959]
[1610260866485,1.6892,1318.3,1318.2,4.00959]
[1610260866686,1.6892,1318.3,1318.1,4.1382064]
[1610260866886,1.6892,1318.3,1318.0,4.1384884]
[1610260867486,1.6892,1318.3,1317.9,4.14091819]
[1610260867690,4.00959,1318.0,1317.9,30.0]
[1610260867886,2.1328,1318.0,1317.9,30.0]
[1610260868587,2.1328,1318.0,1317.8,4.00959]
[1610260868988,2.1328,1318.0,1317.3,30.0]
[1610260869188,2.1328,1318.0,1317.9,4.1428804]
[1610260869788,6.14239,1318.0,1317.9,4.1428804]
[1610260870389,6.14239,1318.0,1317.8,4.14481984]
[1610260870690,6.14239,1318.0,1317.9,30.0]
[1610260871390,6.14239,1318.0,1317.9,34.14426831]
[1610260871690,6.14239,1318.0,1317.9,30.0]
[1610260872493,6.14239,1318.0,1317.9,34.14942102]
[1610260872693,6.14239,1318.0,1317.9,30.0]
[1610260873093,6.14239,1318.0,1317.9,34.14822496]
[1610260873694,6.14239,1318.0,1317.9,34.00959]
[1610260873995,6.14239,1318.0,1317.9,38.15884342]
[1610260874394,6.14239,1318.0,1317.9,34.00959]
[1610260874594,2.1328,1318.0,1317.9,34.00959]
[1610260874796,1.6892,1318.3,1317.9,34.00959]
[1610260874994,11.9004,1318.9,1318.1,4.14702711]
[1610260875194,11.9004,1318.9,1318.1,34.14702711]
[1610260875695,4.00959,1318.2,1318.1,30.0]
[1610260875894,5.98539,1318.2,1318.1,30.0]
[1610260876098,5.98539,1318.2,1318.0,34.14832082]
[1610260876998,5.98539,1318.2,1318.0,30.0]
[1610260877197,5.98539,1318.2,1317.9,4.14951557]
[1610260877698,4.00959,1318.0,1317.9,4.14951557]
[1610260879099,4.00959,1318.0,1317.8,4.15229312]
[1610260880401,4.00959,1318.0,1317.8,34.15229312]
[1610260880600,4.00959,1318.0,1317.9,4.15141459]
[1610260880799,4.00959,1318.0,1317.9,34.15141459]
[1610260881401,1.9758,1318.2,1317.9,34.15141459]